lending/lending_fUSD_20240810
["ID","MTS","AMOUNT","RATE_DAILY","PERIOD"]
[334581008,1723275040439,-32104.22167108,0.000109,2]
[334581120,1723275041566,-3054.19398321,0.000109,2]
[334581128,1723275041632,-14.01174612,0.000109,2]
[334581130,1723275041644,-6032.55630432,0.000109,2]
[334581132,1723275041655,-379.9422459,0.000109,2]
[334581134,1723275041667,-687.79291592,0.000109,2]
[334581186,1723275042217,-181.80939491,0.00010023,2]
[334581258,1723275042915,-170.47760762,0.00010023,2]
[334581272,1723275043467,-303.25905643,0.000109,2]
[334581273,1723275043479,-196119.94597702,0.000109,2]
[334581274,1723275043488,-11105.463,0.000109,2]
[334581275,1723275043498,-5092.0936,0.000109,2]
[334581276,1723275043507,-500.0,0.000109,2]
[334581277,1723275043517,-1000.0,0.000109,2]
[334581278,1723275043526,-319.96940607,0.000109,2]
[334581279,1723275043537,-168.18924987,0.000109,2]
[334581280,1723275043551,-782.22119756,0.000109,2]
[334581281,1723275043560,-150.0,0.00010934,2]
[334581282,1723275043570,-250.0,0.00010959,2]
[334581283,1723275043580,-793.66,0.00010959,2]
[334581284,1723275043590,-360.4019801,0.00010992,2]
[334581285,1723275043599,-360.4019801,0.00010992,2]
[334581286,1723275043609,-360.4019801,0.00010992,2]
[334581287,1723275043618,-360.4019801,0.00010992,2]
[334581288,1723275043627,-360.4019801,0.00010992,2]
[334581289,1723275043637,-2094.1546543,0.00010992,2]
[334581290,1723275043647,-1709.3394016,0.00010992,2]
[334581291,1723275043655,-1324.5241488,0.00010992,2]
[334581292,1723275043664,-939.7088961,0.00010992,2]
[334581293,1723275043674,-554.8936433,0.00010992,2]
[334581294,1723275043684,-1187.1374212,0.00010999,3]
[334581295,1723275043693,-28642.68950368,0.00011,2]
[334581296,1723275045095,-673.14206966,0.00011,2]
[334581297,1723275045107,-2998.14551356,0.00011,2]
[334581298,1723275045117,-899.99490318,0.00011,2]
[334581299,1723275045132,-27908.50961047,0.00011,2]
[334581364,1723275046367,-150.84,0.00010959,2]
[334581367,1723275046379,-120.0775,0.0001098,2]
[334581382,1723275046526,-1015.9225,0.0001098,2]
[334581383,1723275046539,-502.1775,0.00011,2]
[334581384,1723275046691,-317.72918984,0.00011,2]
[334581385,1723275046709,-1078.57073008,0.00011,2]
[334581766,1723275062094,-1050.33292789,0.00010023,2]
[334581767,1723275083574,-973.42537251,0.00010023,2]
[334581768,1723275101671,-413.08367421,0.00010023,2]
[334581769,1723275124037,-227.7293364,0.00010023,2]
[334581770,1723275124058,-213.57923345,0.00010023,2]
[334581771,1723275124448,-227.7293364,0.00010023,2]
[334581772,1723275128630,-162.69079755,0.00010023,2]
[334581773,1723275129148,162.69079755,0.00010023,2]
[334581774,1723275129450,-286.81132146,0.00010023,2]
[334581775,1723275139655,-171.46,0.00010352,2]
[334581776,1723275150356,-170.40581448,0.00010023,2]
[334581777,1723275150726,-160.1,0.00010409,2]
[334581778,1723275153227,160.1,0.00010023,2]
[334581779,1723275153659,-265.49163485,0.00010023,2]
[334581780,1723275191592,-514.54008477,0.00010023,2]
[334581781,1723275201892,-160.59577584,0.00010023,2]
[334581782,1723275202207,-183.54,0.0001025,2]
[334581783,1723275211770,-161.36780692,0.00010023,2]
[334581784,1723275252573,380.0,0.00027,120]
[334581786,1723275366237,510.44,9.65e-05,2]
[334581787,1723275454337,227.7293364,9.65e-05,2]
[334581788,1723275494239,751.38,8.244e-05,2]
[334581803,1723276021308,150.0,8.244e-05,2]
[334581804,1723276021335,822.34117109,8.244e-05,2]
[334581807,1723276045079,764.63,8.219e-05,2]
[334581850,1723276232281,-550.0,0.0001,2]
[334581852,1723276232290,-250.0,0.00010035,2]
[334581854,1723276232300,-182.42,0.00010039,2]
[334581856,1723276232310,-378.88,0.00010059,2]
[334581858,1723276232319,-200.0,0.00010097,2]
[334581860,1723276232329,-176.81,0.00010116,2]
[334581862,1723276232338,-150.0,0.00010192,2]
[334581864,1723276232347,-621.12,0.00010231,2]
[334581865,1723276232356,-192.67,0.00010248,2]
[334581866,1723276232366,-764.63,0.00010482,2]
[334581867,1723276232375,-300.0,0.00010699,2]
[334581868,1723276232384,-1460.0,0.000107,2]
[334581869,1723276232393,-3019.1,0.000107,2]
[334581870,1723276232403,-1262.8919,0.000108,2]
[334581871,1723276232412,-1114.4142,0.000108,2]
[334581872,1723276232421,-2992.43211,0.0001089,2]
[334581873,1723276232431,-916.59,0.00010899,2]
[334581874,1723276232440,-150.0,0.00010899,2]
[334581875,1723276232450,-2500.0,0.000109,2]
[334581876,1723276232459,-192.42590303,0.000109,2]
[334581877,1723276232469,-1210.98332659,0.000109,2]
[334581878,1723276232479,-319.96940604,0.000109,2]
[334581879,1723276232496,-321.36914376,0.000109,2]
[334581880,1723276232505,-754.21,0.00010959,2]
[334581881,1723276232515,-250.0,0.00010959,2]
[334581882,1723276232525,-413.1616512,0.00010992,2]
[334581883,1723276232535,-413.1616512,0.00010992,2]
[334581884,1723276232544,-413.1616512,0.00010992,2]
[334581885,1723276232554,-413.1616512,0.00010992,2]
[334581886,1723276232565,-413.1616512,0.00010992,2]
[334581887,1723276232575,-499.99,0.00010992,2]
[334581888,1723276232584,-413.1616512,0.00010994,2]
[334581889,1723276232593,-394.63591269,0.00010994,2]
[334581890,1723276232603,-151.06328511,0.00010997,2]
[334581891,1723276232613,-41537.33900985,0.00011,2]
[334581892,1723276232623,-152738.55794291,0.00011,2]
[334581893,1723276232635,-643.659991,0.00011,2]
[334581894,1723276232651,-1516.52328455,0.00011,2]
[334581895,1723276232666,-115250.54135572,0.00011,2]
[334581896,1723276232683,-41262.24459102,0.00011,2]
[334581986,1723276238433,-111363.80183321,0.00011,2]
[334581987,1723276238446,-828.69961957,0.00011,2]
[334581988,1723276238459,-280.32178759,0.00011,2]
[334581989,1723276238512,-530.82712951,0.00011,2]
[334581990,1723276238524,-6084.77401869,0.00011,2]
[334581991,1723276238537,-2864.18590087,0.00011,2]
[334581992,1723276238550,-3742.70217563,0.00011,2]
[334581993,1723276238830,-2803.93117109,0.00011,2]
[334581994,1723276238842,-1600.0,0.00011,2]
[334581995,1723276238853,-1356.00596654,0.00011,2]
[334581996,1723276238864,-534.02114835,0.00011,2]
[334581997,1723276238876,-976.96776414,0.00011,2]
[334582280,1723276241552,-6538.66543029,0.00011,2]
[334582282,1723276241565,-2683.01193878,0.00011,2]
[334582284,1723276241579,-383.46957126,0.00011,2]
[334582394,1723276242786,-415.79819658,0.00011,2]
[334582396,1723276242799,-1824.06,0.00011,2]
[334582398,1723276242811,-795.07933211,0.00011,2]
[334582402,1723276242847,-1020.46130145,0.00011,2]
[334582404,1723276242859,-2834.88626195,0.00011,2]
[334582422,1723276243022,-2936.22,0.00011,2]
[334582424,1723276243033,-3756.6679994,0.00011,2]
[334582426,1723276243044,-489.54921309,0.00011,2]
[334582460,1723276243373,-4556.43612242,0.00011,2]
[334582576,1723276244596,-1720634.82998226,0.00011,2]
[334582577,1723276244607,-321053.81069422,0.00011,2]
[334582578,1723276244618,-353.4100011,0.00011,2]
[334582775,1723276246477,-18274.46001479,0.00011,2]
[334583704,1723276263836,-155.21892667,9.962e-05,2]
[334583707,1723276275374,-2648.71224442,9.962e-05,2]
[334583709,1723276275971,-160.1,9.962e-05,2]
[334583710,1723276276483,-160.1,9.962e-05,2]
[334583712,1723276276867,-171.46,9.962e-05,2]
[334583715,1723276277286,-183.54,9.962e-05,2]
[334583746,1723276578751,784.7,8.379e-05,2]
[334583747,1723276653285,150.0,8.379e-05,2]
[334583748,1723276653306,10.1,8.379e-05,2]
[334583749,1723276653493,-192.18700253,0.00010156,2]
[334583751,1723276679777,150.0,9.65e-05,2]
[334583752,1723276679799,150.0,9.65e-05,2]
[334583753,1723276679820,150.0,9.65e-05,2]
[334583754,1723276679844,150.0,9.65e-05,2]
[334583755,1723276679870,150.0,9.65e-05,2]
[334583756,1723276679891,150.0,9.65e-05,2]
[334583757,1723276679917,150.0,9.65e-05,2]
[334583758,1723276679942,150.0,9.65e-05,2]
[334583759,1723276679965,150.0,9.65e-05,2]
[334583760,1723276679986,150.0,9.65e-05,2]
[334583761,1723276680008,33.5738603,9.65e-05,2]
[334583762,1723276750855,150.0,9.65e-05,2]
[334583763,1723276750879,77.7293364,9.65e-05,2]
[334583764,1723276836108,150.0,9.65e-05,2]
[334583765,1723276836129,77.7293364,9.65e-05,2]
[334583775,1723276890760,150.0,0.00023755,120]
[334583776,1723276907902,150.0,9.65e-05,2]
[334583777,1723276907929,63.57923345,9.65e-05,2]
[334583779,1723277010801,150.0,0.00023758,120]
[334583781,1723277070741,150.0,0.00026523,120]
[334583782,1723277083577,193.62838371,8.219e-05,2]
[334583783,1723277083600,551.83161629,8.219e-05,2]
[334583785,1723277190883,150.0,0.00025514,120]
[334583786,1723277197766,986.8,0.00027,120]
[334583789,1723277221179,-150.0,9.888e-05,2]
[334583793,1723277325915,500.00826729,0.00027,120]
[334583797,1723277370752,150.0,0.00026885,120]
[334583815,1723277431528,-208.86,0.00010084,2]
[334583816,1723277431538,-99.20435349,0.00010112,2]
[334583817,1723277431582,-597.68564651,0.00010112,2]
[334583818,1723277431599,-332.79,0.00010112,2]
[334583819,1723277431608,-160.1,0.00010119,2]
[334583820,1723277431617,-250.0,0.00010146,2]
[334583821,1723277431626,-303.11,0.00010196,2]
[334583822,1723277431636,-197.85,0.00010208,2]
[334583823,1723277431645,-172.51,0.00010262,2]
[334583824,1723277431654,-313.0,0.0001033,2]
[334583825,1723277431663,-745.46,0.00010482,2]
[334583826,1723277431673,-695.1956,0.00010859,2]
[334583827,1723277431682,-480.577,0.00010865,2]
[334583828,1723277431691,-247.0,0.00010865,2]
[334583829,1723277431701,-3290.0,0.00010865,2]
[334583830,1723277431710,-1136.0,0.00010865,2]
[334583831,1723277431720,-289.0,0.00010889,2]
[334583832,1723277431729,-153.40421037,0.000109,2]
[334583833,1723277431738,-6304.0761,0.000109,2]
[334583834,1723277431748,-2738.67,0.000109,2]
[334583835,1723277431758,-340.3042,0.000109,2]
[334583836,1723277431767,-100000.0,0.000109,2]
[334583837,1723277431778,-500.0,0.000109,2]
[334583838,1723277431787,-1000.0,0.000109,2]
[334583839,1723277431796,-12017.1867,0.000109,2]
[334583840,1723277431806,-433.2501,0.000109,2]
[334583841,1723277431817,-2500.0,0.000109,2]
[334583842,1723277431826,-2751.95619144,0.000109,2]
[334583843,1723277431835,-169.12638698,0.000109,2]
[334583844,1723277431845,-165.31634034,0.000109,2]
[334583845,1723277431855,-211.530174,0.000109,2]
[334583846,1723277431864,-807.32221772,0.000109,2]
[334583847,1723277431873,-214.24609584,0.000109,2]
[334583848,1723277431883,-250.0,0.00010959,2]
[334583850,1723277431892,-22821.04,0.00010959,2]
[334583852,1723277431902,-26218.88444062,0.00011,2]
[334583853,1723277431911,-75243.62666498,0.00011,2]
[334583856,1723277431929,-5420.3610252,0.00011,2]
[334583892,1723277437734,-20265.086504,0.00011,2]
[334583893,1723277437746,-315.63403254,0.00011,2]
[334583894,1723277437758,-1705.14286432,0.00011,2]
[334583895,1723277437789,-1670.05757638,0.00011,2]
[334583896,1723277437803,-13301.34632884,0.00011,2]
[334583897,1723277437814,-10155.31,0.00011,2]
[334583898,1723277437827,-15773.07401685,0.00011,2]
[334583904,1723277438138,-1170.64861674,0.00011,2]
[334583905,1723277438152,-27881.49999998,0.00011,2]
[334583906,1723277438912,-308.06435349,0.00010012,2]
[334583908,1723277439833,-550.0,0.0001,2]
[334583909,1723277439843,-430.83497412,0.00011,2]
[334583910,1723277439937,-119835.7797464,0.00011,2]
[334583911,1723277439948,-36112.21287817,0.00011,2]
[334583912,1723277439958,-1000.0,0.00011,2]
[334583913,1723277439967,-1000.0,0.00011,2]
[334583914,1723277439976,-1000.0,0.00011,2]
[334583915,1723277439985,-1000.0,0.00011,2]
[334583917,1723277439994,-1020.36873562,0.00011,2]
[334583919,1723277440003,-250.0,0.00011,2]
[334583921,1723277440012,-131037.09465527,0.00011,2]
[334583923,1723277440023,-320730.42854129,0.00011,2]
[334583983,1723277442490,-319.9785919,0.000109,2]
[334583985,1723277442499,-180.0214081,0.00011,2]
[334583987,1723277442510,-2925.0,0.00011,2]
[334583994,1723277442542,-1888.0000005,0.00011,2]
[334583996,1723277442552,-3068.01660738,0.00011,2]
[334583998,1723277442565,-500.0,0.00011,2]
[334584000,1723277442596,-4063.59449961,0.00011,2]
[334584001,1723277442606,-337.27249606,0.00011,2]
[334584002,1723277442618,-801.46196804,0.00011,2]
[334584003,1723277442628,-610.39836,0.00011,2]
[334584004,1723277442639,-1641.2491585,0.00011,2]
[334584005,1723277442650,-6531.705727,0.00011,2]
[334584006,1723277442661,-537.16417105,0.00011,2]
[334584007,1723277442677,-2279.0,0.00011,2]
[334584008,1723277443660,-2759.5004898,0.00011,2]
[334584009,1723277443671,-4769.26480063,0.00011,2]
[334584020,1723277445628,-18687.90820847,0.00011,2]
[334584021,1723277445639,-456.95008335,0.00011,2]
[334584022,1723277445650,-343.68665496,0.00011,2]
[334584023,1723277445661,-27493.91517875,0.00011,2]
[334584024,1723277445676,-852.18109769,0.00011,2]
[334584025,1723277445690,-519.94092033,0.00011,2]
[334584026,1723277445701,-2251.39048209,0.00011,2]
[334584027,1723277445711,-5090.79280915,0.00011,2]
[334584028,1723277445722,-4404.46998604,0.00011,2]
[334584029,1723277445733,-768.0,0.00011,2]
[334584030,1723277445744,-493.59192992,0.00011,2]
[334584031,1723277445755,-451.23409272,0.00011,2]
[334584032,1723277445766,-26977.16239601,0.00011,2]
[334584033,1723277445776,-670.56,0.00011,2]
[334584034,1723277445794,-4904.9682,0.00011,2]
[334584035,1723277445805,-584.82021014,0.00011,2]
[334584036,1723277445816,-929.49487417,0.00011,2]
[334584037,1723277445849,-254960.91750192,0.00011,2]
[334584038,1723277445860,-1647.40367444,0.00011,2]
[334584039,1723277445871,-400.57,0.00011,2]
[334584040,1723277445882,-6408.14495674,0.00011,2]
[334584041,1723277445892,-569.50034807,0.00011,2]
[334584042,1723277445903,-585.22668101,0.00011,2]
[334584043,1723277445914,-1346.51356479,0.00011,2]
[334584044,1723277445929,-442.00189353,0.00011,2]
[334584045,1723277445940,-305.0,0.00011,2]
[334584046,1723277445951,-3075.0,0.00011,2]
[334584047,1723277445962,-3823.05,0.00011,2]
[334584048,1723277445973,-515.83635347,0.00011,2]
[334584052,1723277484970,-1149.39558471,0.0001045,2]
[334584053,1723277551271,150.0,0.00026755,120]
[334584054,1723277598828,500.0,0.00026203,120]
[334584055,1723277600688,150.0,8.236e-05,2]
[334584056,1723277600709,150.0,8.236e-05,2]
[334584057,1723277600730,150.0,8.236e-05,2]
[334584058,1723277600751,150.0,8.236e-05,2]
[334584059,1723277600773,150.0,8.236e-05,2]
[334584060,1723277600795,150.0,8.236e-05,2]
[334584061,1723277600816,107.91,8.236e-05,2]
[334584062,1723277686904,150.0,8.236e-05,2]
[334584063,1723277686925,133.1342873,8.236e-05,2]
[334584064,1723277695667,150.0,8.236e-05,2]
[334584065,1723277695688,150.0,8.236e-05,2]
[334584066,1723277695709,150.0,8.236e-05,2]
[334584067,1723277695729,150.0,8.236e-05,2]
[334584068,1723277695750,150.0,8.236e-05,2]
[334584069,1723277695772,150.0,8.236e-05,2]
[334584070,1723277695792,150.0,8.236e-05,2]
[334584071,1723277695815,150.0,8.236e-05,2]
[334584072,1723277695837,150.0,8.236e-05,2]
[334584073,1723277695860,21.01361887,8.236e-05,2]
[334584074,1723277700532,150.0,8.3e-05,2]
[334584075,1723277700552,24.6,8.3e-05,2]
[334584076,1723277730734,150.0,0.00026915,120]
[334584077,1723277754101,973.42537251,8.3e-05,2]
[334584078,1723277767944,150.0,8.3e-05,2]
[334584079,1723277767966,53.89122406,8.3e-05,2]
[334584080,1723277779124,-170.64005521,9.964e-05,2]
[334584081,1723277795320,-500.0,9.936e-05,2]
[334584082,1723277807264,-442.48,9.935e-05,2]
[334584083,1723277859415,-160.59577584,9.935e-05,2]
[334584084,1723277869802,-241.8832356,9.935e-05,2]
[334584085,1723277911288,150.0,0.0002589,120]
[334584087,1723278093562,1005.66,8.219e-05,2]
[334584088,1723278198158,500.0,0.00026203,120]
[334584093,1723278380939,-250.0,9.875e-05,2]
[334584094,1723278380986,-172.51,9.875e-05,2]
[334584099,1723278451015,150.0,0.00023823,120]
[334584107,1723278542653,-646.01,9.884e-05,2]
[334584108,1723278570370,955.37,8.219e-05,2]
[334584125,1723278631741,-200.0,9.921e-05,2]
[334584127,1723278631751,-300.0,9.944e-05,2]
[334584129,1723278631760,-300.0,9.944e-05,2]
[334584131,1723278631771,-5703.98141772,9.945e-05,2]
[334584135,1723278631797,-757.21613236,9.945e-05,2]
[334584136,1723278631854,-364.013,9.945e-05,2]
[334584137,1723278631910,-10742.58746219,9.945e-05,2]
[334584138,1723278631921,-6322.20198773,9.945e-05,2]
[334584139,1723278631930,-2265.00586485,9.962e-05,2]
[334584140,1723278631939,-155.29048456,9.962e-05,2]
[334584141,1723278631948,-221.53,9.976e-05,2]
[334584142,1723278631957,-633.03266898,9.99e-05,2]
[334584143,1723278631966,-150.0,9.999e-05,2]
[334584144,1723278631975,-500.0,0.0001,2]
[334584145,1723278631984,-500.0,0.0001,2]
[334584146,1723278631994,-500.0,0.0001,2]
[334584147,1723278632003,-500.0,0.0001,2]
[334584148,1723278632012,-500.0,0.0001,2]
[334584149,1723278632022,-500.0,0.0001,2]
[334584150,1723278632031,-500.0,0.0001,2]
[334584151,1723278632040,-500.0,0.0001,2]
[334584152,1723278632049,-500.0,0.0001,2]
[334584153,1723278632059,-500.0,0.0001,2]
[334584154,1723278632068,-500.0,0.0001,2]
[334584155,1723278632077,-500.0,0.0001,2]
[334584156,1723278632086,-500.0,0.0001,2]
[334584157,1723278632095,-500.0,0.0001,2]
[334584158,1723278632104,-500.0,0.0001,2]
[334584159,1723278632113,-500.0,0.0001,2]
[334584160,1723278632122,-500.0,0.0001,2]
[334584161,1723278632131,-500.0,0.0001,2]
[334584162,1723278632140,-500.0,0.0001,2]
[334584163,1723278632149,-500.0,0.0001,2]
[334584164,1723278632158,-500.0,0.0001,2]
[334584165,1723278632168,-500.0,0.0001,2]
[334584166,1723278632177,-500.0,0.0001,2]
[334584167,1723278632186,-500.0,0.0001,2]
[334584168,1723278632195,-500.0,0.0001,2]
[334584170,1723278632203,-500.0,0.0001,2]
[334584172,1723278632212,-500.0,0.0001,2]
[334584173,1723278632222,-500.0,0.0001,2]
[334584175,1723278632230,-500.0,0.0001,2]
[334584177,1723278632239,-500.0,0.0001,2]
[334584180,1723278632248,-500.0,0.0001,2]
[334584181,1723278632257,-500.0,0.0001,2]
[334584184,1723278632267,-500.0,0.0001,2]
[334584186,1723278632281,-500.0,0.0001,2]
[334584188,1723278632290,-500.0,0.0001,2]
[334584190,1723278632299,-500.0,0.0001,2]
[334584193,1723278632308,-500.0,0.0001,2]
[334584196,1723278632317,-500.0,0.0001,2]
[334584198,1723278632326,-500.0,0.0001,2]
[334584201,1723278632335,-500.0,0.0001,2]
[334584204,1723278632345,-648.61,0.0001,2]
[334584206,1723278632354,-500.0,0.0001,2]
[334584207,1723278632363,-500.0,0.0001,2]
[334584208,1723278632372,-500.0,0.0001,2]
[334584209,1723278632381,-500.0,0.0001,2]
[334584210,1723278632391,-500.0,0.0001,2]
[334584211,1723278632401,-500.0,0.0001,2]
[334584212,1723278632410,-500.0,0.0001,2]
[334584213,1723278632419,-500.0,0.0001,2]
[334584214,1723278632428,-500.0,0.0001,2]
[334584215,1723278632437,-500.0,0.0001,2]
[334584216,1723278632446,-500.0,0.0001,2]
[334584217,1723278632455,-500.0,0.0001,2]
[334584218,1723278632464,-576.26,0.0001,2]
[334584219,1723278632473,-500.0,0.0001,2]
[334584220,1723278632482,-500.0,0.0001,2]
[334584221,1723278632491,-199.9198247,0.0001,2]
[334584222,1723278632500,-155.24468221,0.0001,2]
[334584223,1723278632510,-200.0,0.0001,2]
[334584224,1723278632519,-231.38149934,0.0001,2]
[334584225,1723278632528,-200.0,0.0001,2]
[334584226,1723278632537,-173.04,0.00010001,2]
[334584227,1723278632546,-177.68,0.00010078,2]
[334584228,1723278632555,-1801.86,0.00010078,2]
[334584229,1723278632565,-2520.68,0.00010078,2]
[334584230,1723278632574,-824.46,0.00010078,2]
[334584231,1723278632583,-2545.05,0.00010115,2]
[334584232,1723278632592,-179.41,0.00010115,2]
[334584233,1723278632602,-946.70738613,0.0001045,2]
[334584234,1723278632633,-6907.37022627,0.0001045,2]
[334584235,1723278632642,-499.99,0.0001045,2]
[334584236,1723278632651,-606.64,0.0001045,2]
[334584237,1723278632660,-3209.77,0.0001045,2]
[334584238,1723278632670,-955.37,0.00010473,2]
[334584239,1723278632679,-179.19,0.00010477,2]
[334584240,1723278632688,-946.6207,0.000108,2]
[334584241,1723278632698,-28644.7678,0.000108,2]
[334584242,1723278632707,-9141.1613,0.000108,2]
[334584243,1723278632717,-283.914,0.000108,2]
[334584244,1723278632727,-1000.0,0.000108,2]
[334584245,1723278632737,-336.3088,0.00010859,2]
[334584246,1723278632747,-10400.9939847,0.00010899,2]
[334584247,1723278632756,-33938.0296,0.000109,2]
[334584248,1723278632765,-44842.81914796,0.000109,2]
[334584249,1723278632777,-54738.36475204,0.000109,2]
[334584250,1723278632787,-705.1607,0.000109,2]
[334584251,1723278632796,-7500.0,0.000109,2]
[334584252,1723278632806,-500.0,0.000109,2]
[334584253,1723278632815,-1000.0,0.000109,2]
[334584254,1723278632824,-5345.71687274,0.000109,2]
[334584255,1723278632836,-1227.62199626,0.000109,2]
[334584256,1723278632846,-644.61005297,0.000109,2]
[334584257,1723278632855,-805.89871788,0.000109,2]
[334584258,1723278632864,-165.1649757,0.000109,2]
[334584259,1723278632874,-119.28119927,0.000109,2]
[334584260,1723278632885,-880.71880073,0.000109,2]
[334584261,1723278632895,-420.0,0.00010938,2]
[334584262,1723278632904,-420.0,0.00010938,2]
[334584263,1723278632914,-1357.84051972,0.0001094,2]
[334584270,1723278637848,-1244.75241602,0.0001094,2]
[334584271,1723278637862,-276.47534426,0.0001094,2]
[334584272,1723278637872,-425.41571587,0.00010959,2]
[334584273,1723278637886,-574.58428413,0.00010959,2]
[334584274,1723278637897,-1000.0,0.00010959,2]
[334584275,1723278637909,-1000.0,0.00010959,2]
[334584276,1723278637919,-1000.0,0.00010959,2]
[334584277,1723278637931,-1000.0,0.00010959,2]
[334584278,1723278637940,-1000.0,0.00010959,2]
[334584279,1723278637950,-122.05985637,0.00010959,2]
[334584280,1723278637963,-877.94014363,0.00010959,2]
[334584281,1723278637973,-626.85972705,0.00010959,2]
[334584282,1723278637986,-373.14027295,0.00010959,2]
[334584283,1723278637996,-347.48264521,0.00010959,2]
[334584284,1723278638007,-652.51735479,0.00010959,2]
[334584285,1723278638016,-73.70814565,0.00010959,2]
[334584286,1723278638031,-689.05821815,0.00010959,2]
[334584287,1723278638042,-237.2336362,0.00010959,2]
[334584288,1723278638052,-1000.0,0.00010959,2]
[334584289,1723278638061,-1000.0,0.00010959,2]
[334584290,1723278638071,-972.71131334,0.00010959,2]
[334584291,1723278638082,-27.28868666,0.00010959,2]
[334584292,1723278638093,-1000.0,0.00010959,2]
[334584293,1723278638103,-1000.0,0.00010959,2]
[334584294,1723278638114,-1000.0,0.00010959,2]
[334584295,1723278638124,-1000.0,0.00010959,2]
[334584296,1723278638133,-1000.0,0.00010959,2]
[334584297,1723278638142,-170.28228209,0.00010959,2]
[334584298,1723278638157,-829.71771791,0.00010959,2]
[334584299,1723278638167,-1000.0,0.00010959,2]
[334584300,1723278638177,-1000.0,0.00010959,2]
[334584301,1723278638187,-1000.0,0.00010959,2]
[334584302,1723278638198,-753.54288209,0.00010959,2]
[334584305,1723278638216,-246.45711791,0.00010959,2]
[334584307,1723278638226,-1000.0,0.00010959,2]
[334584308,1723278638236,-1000.0,0.00010959,2]
[334584309,1723278638247,-153.54288209,0.00010959,2]
[334584396,1723278639766,-200.0,0.0001,2]
[334584397,1723278639777,-296.07624443,0.00010959,2]
[334584398,1723278639934,-550.38087348,0.00010959,2]
[334584399,1723278639945,-1000.0,0.00010959,2]
[334584400,1723278639956,-1000.0,0.00010959,2]
[334584401,1723278639965,-1000.0,0.00010959,2]
[334584402,1723278639976,-1000.0,0.00010959,2]
[334584403,1723278639989,-223.0,0.00010959,2]
[334584404,1723278640000,-250.0,0.00010959,2]
[334584405,1723278640010,-2000.0,0.00010959,2]
[334584406,1723278640019,-1461.54,0.00010959,2]
[334584407,1723278640036,-1051.84018982,0.00010959,2]
[334584408,1723278640049,-1194.0,0.00010986,2]
[334584409,1723278640059,-503.7906,0.00010989,2]
[334584410,1723278640068,-218177.12188718,0.0001099,3]
[334584411,1723278640078,-255.0,0.00010999,2]
[334584412,1723278640089,-873970.7782678,0.00011,2]
[334584413,1723278640098,-1385485.47036764,0.00011,2]
[334584414,1723278640108,-277194.49556958,0.00011,2]
[334584415,1723278640117,-216.0,0.00011,2]
[334584416,1723278640126,-216.0,0.00011,2]
[334584417,1723278640138,-150.0,0.00011,2]
[334584418,1723278640148,-265.723,0.00011,2]
[334584419,1723278640162,-156.085,0.00011,2]
[334584420,1723278640172,-209.076,0.00011,2]
[334584421,1723278640182,-163.0,0.00011,2]
[334584422,1723278640192,-163.698,0.00011,2]
[334584423,1723278640201,-150.0,0.00011,2]
[334584424,1723278640212,-150.0,0.00011,2]
[334584426,1723278640222,-865.63064836,0.00011,2]
[334584428,1723278640231,-1136.0,0.00011,2]
[334584430,1723278640240,-446.0,0.00011,2]
[334584432,1723278640250,-556.0,0.00011,2]